bitfinex-derivatives/quotes_BTCF0:USTF0_20250130
["timestamp","ask_amount","ask_price","bid_price","bid_amount"]
[1738221951429,0.348294,105150.0,105140.0,0.02789999]
[1738221951636,0.9035219,105150.0,105140.0,0.02789999]
[1738221952140,0.83495993,105150.0,105140.0,0.02789999]
[1738221952639,0.84295993,105150.0,105140.0,0.02889999]
[1738221954845,0.84295993,105150.0,105140.0,0.09229999]
[1738221955742,1.16878984,105150.0,105140.0,0.09229999]
[1738221956246,1.11338792,105150.0,105140.0,0.09229999]
[1738221957445,1.18194989,105150.0,105140.0,0.09229999]
[1738221958551,1.27060317,105150.0,105140.0,0.09229999]
[1738221958750,1.10231446,105150.0,105140.0,0.09229999]
[1738221959852,1.03375249,105150.0,105140.0,0.09229999]
[1738221960345,1.60347249,105150.0,105140.0,0.09229999]
[1738221960552,1.61277379,105150.0,105140.0,0.09229999]
[1738221961652,1.52412051,105150.0,105140.0,0.09229999]
[1738221962360,1.45418425,105150.0,105140.0,0.09229999]
[1738221966453,1.52274622,105150.0,105140.0,0.001]
[1738221966658,1.58654622,105150.0,105140.0,0.001]
[1738221967760,1.6751995,105150.0,105140.0,0.001]
[1738221970269,1.58759456,105150.0,105140.0,0.001]
[1738221970963,1.49894128,105150.0,105140.0,0.001]
[1738221976267,1.56750325,105150.0,105140.0,0.001]
[1738221976473,0.348313,105140.0,105130.0,0.0001426]
[1738221976772,0.97894113,105140.0,105130.0,0.0001426]
[1738221977167,1.06759441,105140.0,105130.0,0.0001426]
[1738221978066,1.06959441,105140.0,105130.0,0.0001426]
[1738221979170,1.07759441,105140.0,105130.0,0.0011426]
[1738221981467,1.16520463,105140.0,105130.0,0.0011426]
[1738221982974,1.07655135,105140.0,105130.0,0.0011426]
[1738221988080,1.14645582,105140.0,105130.0,0.0011426]
[1738221992479,0.98894113,105140.0,105130.0,0.0011426]
[1738221998692,1.14647021,105140.0,105130.0,0.0011426]
[1738222000489,0.348331,105130.0,105120.0,0.0618]
[1738222000785,0.87635494,105130.0,105120.0,0.0618]
[1738222001890,0.87835494,105130.0,105120.0,0.0618]
[1738222002282,0.87835494,105130.0,105120.0,0.0628]
[1738222002483,0.88535494,105130.0,105120.0,0.0628]
[1738222002683,0.88725734,105130.0,105120.0,0.0628]
[1738222005288,0.88725734,105130.0,105120.0,0.0321]
[1738222006695,0.95581931,105130.0,105120.0,0.001]
[1738222006895,0.98711931,105130.0,105120.0,0.001]
[1738222007097,0.98846363,105130.0,105120.0,0.001]
[1738222009295,0.9979085,105130.0,105120.0,0.001]
[1738222011590,0.87623947,105130.0,105110.0,0.0310426]
[1738222011790,0.94563491,105120.0,105110.0,0.0300426]
[1738222012089,1.00104239,105120.0,105110.0,0.0001426]
[1738222012493,0.94563491,105120.0,105110.0,0.0001426]
[1738222012891,0.94563491,105120.0,105110.0,0.0011426]
[1738222013495,1.51547491,105120.0,105110.0,0.0001426]
[1738222013692,1.52247491,105120.0,105110.0,0.0011426]
[1738222015303,1.52347491,105120.0,105110.0,0.0011426]
[1738222015702,1.4352812,105120.0,105110.0,0.0011426]
[1738222016595,0.190267,105110.0,105100.0,0.0983]
[1738222016787,0.68819094,105110.0,105100.0,0.0318]
[1738222017008,0.71849094,105110.0,105100.0,0.0318]
[1738222018100,0.7203937,105110.0,105100.0,0.0318]
[1738222018494,0.7233937,105110.0,105100.0,0.0318]
[1738222020100,0.88092278,105110.0,105100.0,0.0318]
[1738222022495,0.88692278,105110.0,105100.0,0.0328]
[1738222022697,0.88992278,105110.0,105100.0,0.0328]
[1738222024098,0.190285,105100.0,105090.0,0.0001426]
[1738222024304,0.190321,105080.0,105070.0,0.00142764]
[1738222024607,0.190376,105050.0,105040.0,0.0309]
[1738222024905,0.190376,105050.0,105030.0,0.140176]
[1738222024906,0.190394,105040.0,105030.0,0.140176]
[1738222025094,0.72011794,105040.0,105030.0,0.140176]
[1738222025401,0.46124197,105040.0,105030.0,0.140176]
[1738222025707,0.15572472,105040.0,105030.0,0.140176]
[1738222026110,0.58508669,105040.0,105030.0,0.140176]
[1738222027308,0.58508669,105040.0,105030.0,0.171576]
[1738222027905,0.51652472,105040.0,105030.0,0.201876]
[1738222028100,0.58808669,105040.0,105030.0,0.201876]
[1738222028307,0.77848069,105040.0,105030.0,0.201876]
[1738222029106,0.84704266,105040.0,105030.0,0.171576]
[1738222029412,0.84704266,105040.0,105030.0,0.140176]
[1738222029615,0.95244861,105040.0,105020.0,0.0310426]
[1738222029815,0.71775582,105030.0,105020.0,0.0310426]
[1738222030011,0.69024015,105030.0,105020.0,0.0310426]
[1738222030514,0.76227279,105030.0,105020.0,0.0310426]
[1738222032713,0.76227279,105030.0,105020.0,0.0320426]
[1738222033524,0.6576945,105030.0,105020.0,0.0320426]
[1738222034124,0.82679931,105030.0,105020.0,0.0320426]
[1738222035129,0.82779931,105030.0,105020.0,0.0310426]
[1738222035316,0.83279931,105030.0,105020.0,0.0310426]
[1738222037427,0.9373776,105030.0,105020.0,0.0310426]
[1738222037830,0.80433475,105030.0,105020.0,0.0310426]
[1738222038031,0.81361291,105030.0,105020.0,0.0310426]
[1738222038230,0.86889566,105030.0,105020.0,0.0310426]
[1738222040632,1.02689566,105030.0,105020.0,0.0310426]
[1738222040831,0.86889566,105030.0,105020.0,0.0310426]
[1738222041129,0.97347395,105030.0,105020.0,0.0310426]
[1738222041335,0.97347395,105030.0,105020.0,0.0001426]
[1738222041535,1.00597395,105030.0,105020.0,0.0001426]
[1738222042026,1.03877395,105030.0,105020.0,0.0001426]
[1738222042728,1.07065395,105030.0,105020.0,0.0001426]
[1738222045035,0.96607566,105030.0,105020.0,0.0001426]
[1738222047330,0.93327566,105030.0,105020.0,0.0001426]
[1738222048336,1.10238047,105030.0,105020.0,0.0001426]
[1738222050543,1.06642423,105030.0,105020.0,0.0001426]
[1738222051233,0.92578398,105030.0,105020.0,0.0001426]
[1738222051434,0.92546398,105030.0,105020.0,0.0001426]
[1738222052039,0.89390398,105030.0,105020.0,0.0001426]
[1738222052236,0.92542398,105030.0,105020.0,0.0001426]
[1738222053639,0.89390398,105030.0,105020.0,0.0001426]
[1738222053839,0.92530398,105030.0,105020.0,0.0001426]
[1738222055038,0.75619917,105030.0,105020.0,0.0001426]
[1738222055246,1.32651917,105030.0,105020.0,0.0001426]
[1738222057838,1.35651917,105030.0,105020.0,0.0001426]
[1738222065448,1.78244781,105030.0,105020.0,0.0001426]
[1738222066046,1.87021668,105030.0,105020.0,0.0001426]
[1738222068846,1.70769463,105030.0,105020.0,0.1373867]
[1738222069037,1.53900447,105030.0,105020.0,0.1373867]
[1738222069239,1.59444077,105030.0,105020.0,0.10126465]
[1738222069452,1.20092783,105030.0,105020.0,0.10126465]
[1738222069646,1.39133983,105030.0,105020.0,0.10126465]
[1738222071649,1.30357096,105030.0,105020.0,0.10126465]
[1738222073041,1.30405096,105030.0,105020.0,0.1698867]
[1738222073355,1.41522363,105030.0,105020.0,0.10126465]
[1738222076351,1.48384568,105030.0,105020.0,0.0326426]
[1738222076749,1.48384568,105030.0,105020.0,0.10126465]
[1738222076944,1.41522363,105030.0,105020.0,0.10126465]
[1738222078148,1.48384568,105030.0,105020.0,0.0326426]
[1738222078354,1.52064568,105030.0,105020.0,0.0001426]
[1738222078550,1.55904568,105030.0,105020.0,0.0001426]
[1738222079055,1.50360938,105030.0,105020.0,0.0001426]
[1738222081454,1.50360938,105030.0,105020.0,0.06876465]
[1738222082053,1.50360938,105030.0,105020.0,0.0001426]
[1738222083756,1.32826733,105030.0,105020.0,0.06876465]
[1738222084061,0.83241768,105030.0,105020.0,0.9886167]
[1738222084256,0.83241768,105030.0,105020.0,1.0257167]
[1738222084448,0.80873533,105030.0,105020.0,1.0257167]
[1738222084650,0.80873533,105030.0,105020.0,2.5257167]
[1738222085359,0.80873533,105030.0,105020.0,1.0257167]
[1738222085748,0.86409768,105030.0,105020.0,1.0257167]
[1738222086559,0.86409768,105030.0,105020.0,0.9929754]
[1738222088269,1.05450968,105030.0,105020.0,0.9929754]
[1738222088448,1.05450968,105030.0,105020.0,0.6929754]
[1738222089262,0.99914733,105030.0,105020.0,0.6929754]
[1738222091459,0.77705533,105030.0,105020.0,0.9929754]
[1738222092159,0.77705533,105030.0,105020.0,1.0974782]
[1738222092359,0.22550917,105040.0,105020.0,0.9070482]
[1738222092549,0.22550917,105040.0,105030.0,0.8383176]
[1738222092757,0.20190682,105040.0,105030.0,0.8383176]
[1738222092963,0.20190682,105040.0,105030.0,1.1383176]
[1738222093158,0.20190682,105040.0,105030.0,2.6383176]
[1738222093567,0.20390682,105040.0,105030.0,2.6383176]
[1738222094359,0.21190682,105040.0,105030.0,2.6383176]
[1738222095358,0.20990682,105040.0,105030.0,2.6383176]
[1738222095561,0.21190682,105040.0,105030.0,2.6383176]
[1738222096864,0.18014682,105040.0,105030.0,2.6383176]
[1738222097864,0.12336737,105040.0,105030.0,2.6383176]
[1738222101156,0.12336737,105040.0,105030.0,2.64759172]
[1738222103061,0.12336737,105040.0,105030.0,2.34759172]
[1738222108662,0.12336737,105040.0,105030.0,2.27570066]
[1738222115889,0.01,105040.0,105030.0,2.27570066]
[1738222123302,0.01,105040.0,105030.0,0.77570066]
[1738222123788,0.01,105040.0,105030.0,2.27570066]
[1738222124403,0.18014682,105040.0,105030.0,2.27570066]
[1738222127695,0.01,105040.0,105030.0,2.27570066]
[1738222128196,0.35654052,105050.0,105030.0,2.15384593]
[1738222128390,0.31694052,105050.0,105040.0,0.68830854]
[1738222128601,0.28259792,105050.0,105040.0,0.75686581]
[1738222128996,0.22723557,105050.0,105040.0,0.68830854]
[1738222129797,0.23623557,105050.0,105040.0,0.68830854]
[1738222130500,0.012,105050.0,105040.0,0.68830854]
[1738222130891,0.012,105050.0,105040.0,0.68930854]
[1738222131091,0.009,105050.0,105040.0,0.68930854]
[1738222131299,0.012,105050.0,105040.0,0.68930854]
[1738222132400,0.012,105050.0,105040.0,0.75786581]
[1738222132993,0.009,105050.0,105040.0,0.75786581]
[1738222133193,0.009,105050.0,105040.0,0.79406581]
[1738222133393,0.001,105050.0,105040.0,0.84066281]
[1738222133595,0.17165442,105050.0,105040.0,0.84066281]
[1738222133794,0.17265442,105050.0,105040.0,0.84066281]
[1738222134495,0.17165442,105050.0,105040.0,0.84066281]
[1738222134903,0.10762994,105050.0,105040.0,0.84066281]
[1738222135398,0.08750165,105050.0,105040.0,0.84066281]
[1738222137899,0.14214258,105050.0,105040.0,0.65026881]
[1738222138097,0.14214258,105050.0,105040.0,0.84066281]
[1738222139113,0.1105839,105050.0,105040.0,0.84066281]
[1738222140906,0.0375426,105060.0,105040.0,0.65026881]
[1738222141115,0.0001426,105060.0,105050.0,0.68829054]
[1738222141406,0.26840739,105070.0,105060.0,0.190357]
[1738222141613,0.52207558,105080.0,105070.0,0.190339]
[1738222141906,0.52207558,105080.0,105070.0,2.18825354]
[1738222142105,0.48287558,105080.0,105070.0,2.25681081]
[1738222142305,0.68899995,105100.0,105090.0,0.190303]
[1738222142609,0.6336376,105100.0,105090.0,1.04901754]
[1738222143809,0.6406376,105100.0,105090.0,1.05001754]
[1738222144415,0.6416376,105100.0,105090.0,1.05001754]
[1738222145005,0.35857208,105100.0,105090.0,1.05001754]
[1738222145208,0.0472,105100.0,105090.0,1.05001754]
[1738222146103,0.0472,105100.0,105090.0,1.05942642]
[1738222146598,0.0759426,105110.0,105100.0,0.190285]
[1738222146803,0.1137426,105110.0,105100.0,0.75675681]
[1738222147317,0.1137426,105110.0,105100.0,0.68819954]
[1738222148011,0.1147426,105110.0,105100.0,0.68819954]
[1738222148711,0.1237426,105110.0,105100.0,0.68919954]
[1738222149499,0.1237426,105110.0,105100.0,0.75775681]
[1738222149704,0.1207426,105110.0,105100.0,0.75675681]
[1738222150111,0.1197426,105110.0,105100.0,0.75675681]
[1738222151607,0.1167426,105110.0,105100.0,0.75675681]
[1738222152022,0.1167426,105110.0,105100.0,0.68819954]
[1738222152711,0.1167426,105110.0,105100.0,0.75675681]
[1738222153619,0.1167426,105110.0,105100.0,0.68819954]
[1738222157507,0.3070096,105110.0,105100.0,0.25884227]
[1738222157709,0.3387296,105110.0,105100.0,0.25884227]
[1738222157916,0.6995296,105110.0,105100.0,0.25884227]
[1738222158314,0.75489195,105110.0,105100.0,0.25884227]
[1738222159220,0.56462495,105110.0,105100.0,0.25884227]
[1738222160113,0.56462495,105110.0,105100.0,0.190285]
[1738222160114,0.82344922,105110.0,105100.0,0.190285]
[1738222161118,0.82344922,105110.0,105100.0,0.25884227]
[1738222162226,0.75489195,105110.0,105100.0,0.25884227]
[1738222163721,0.56462495,105110.0,105100.0,0.25884227]
[1738222164616,0.56462495,105110.0,105100.0,0.29465748]
[1738222167819,0.56462495,105110.0,105100.0,0.190285]
[1738222169416,0.75489195,105110.0,105100.0,0.190285]
[1738222169826,0.36237195,105110.0,105100.0,0.190285]
[1738222170126,0.6992496,105110.0,105100.0,0.190285]
[1738222170828,0.3384496,105110.0,105100.0,0.190285]
[1738222171022,0.1167426,105110.0,105100.0,0.65545748]
[1738222171225,0.1485826,105110.0,105100.0,0.65545748]
[1738222171524,0.1485826,105110.0,105100.0,2.15545748]
[1738222172316,0.1485826,105110.0,105100.0,0.65545748]
[1738222172518,0.0727826,105110.0,105100.0,0.65545748]
[1738222172719,0.0727826,105110.0,105100.0,2.15545748]
[1738222175020,0.0409426,105110.0,105100.0,2.15545748]
[1738222175226,0.0728226,105110.0,105100.0,2.15545748]
[1738222177327,0.0350226,105110.0,105100.0,2.15545748]
[1738222178033,0.0031426,105110.0,105100.0,2.15545748]
[1738222179832,0.0031426,105110.0,105100.0,0.65545748]
[1738222180027,0.5935096,105110.0,105100.0,0.190285]
[1738222180233,0.6301096,105110.0,105100.0,0.190285]
[1738222182235,0.6301096,105110.0,105100.0,0.29465748]
[1738222182427,0.4398426,105110.0,105100.0,0.29465748]
[1738222186626,0.4398426,105110.0,105100.0,0.25877226]
[1738222191733,0.6301096,105110.0,105100.0,0.25877226]
[1738222193144,0.68547195,105110.0,105100.0,0.25877226]
[1738222197440,0.16524495,105110.0,105100.0,0.25877226]
[1738222197640,0.1098826,105110.0,105100.0,0.25877226]
[1738222198341,0.4706826,105110.0,105100.0,0.25877226]
[1738222198548,0.1098826,105110.0,105100.0,0.25877226]
[1738222201541,0.6609496,105110.0,105100.0,0.25877226]
[1738222202147,0.35551195,105110.0,105100.0,0.25877226]
[1738222202850,0.3001496,105110.0,105100.0,0.25877226]
[1738222203349,0.1098826,105110.0,105100.0,0.25877226]
[1738222209256,0.16524495,105110.0,105100.0,0.25877226]
[1738222210255,0.1098826,105110.0,105100.0,0.25877226]
[1738222210849,0.16524495,105110.0,105100.0,0.25877226]
[1738222213158,0.39270943,105110.0,105100.0,0.25877226]
[1738222214158,0.39270943,105110.0,105100.0,0.32725952]
[1738222215856,0.16524495,105110.0,105100.0,0.32725952]
[1738222218956,0.16524495,105110.0,105100.0,0.25877226]
[1738222219849,0.1098826,105110.0,105100.0,0.25877226]
[1738222221160,0.1098826,105110.0,105100.0,0.61957226]
[1738222221361,0.1098826,105110.0,105100.0,0.32725952]
[1738222222460,0.3001496,105110.0,105100.0,0.25877226]
[1738222224260,0.3001496,105110.0,105100.0,0.61957226]
[1738222224664,0.3001496,105110.0,105100.0,0.25877226]
[1738222225362,0.35551195,105110.0,105100.0,0.25877226]
[1738222226156,0.3001496,105110.0,105100.0,0.25877226]
[1738222230468,0.3001496,105110.0,105090.0,0.3347615]
[1738222230469,0.190285,105100.0,105090.0,0.3347615]
[1738222230764,0.61957226,105100.0,105090.0,0.03907424]
[1738222230981,0.66017226,105100.0,105090.0,0.03907424]
[1738222231468,0.591685,105100.0,105090.0,0.1075615]
[1738222231765,0.591685,105100.0,105090.0,0.07789614]
[1738222232152,0.6470855,105100.0,105090.0,0.07789614]
[1738222233868,0.1268405,105100.0,105090.0,0.26819914]
[1738222234369,0.07144,105100.0,105090.0,0.26819914]
[1738222235162,0.0406,105100.0,105090.0,0.26819914]
[1738222235468,0.0716,105100.0,105090.0,0.26819914]
[1738222236168,0.07156,105100.0,105090.0,0.26819914]
[1738222236461,0.07156,105100.0,105090.0,0.30859914]
[1738222237463,0.1314431,105110.0,105100.0,0.190285]
[1738222237771,0.45973563,105110.0,105100.0,0.32725952]
[1738222238068,0.40433513,105110.0,105100.0,0.32725952]
[1738222238263,0.45971804,105110.0,105100.0,0.32725952]
[1738222238459,0.35289804,105110.0,105100.0,0.32725952]
[1738222238767,0.38437804,105110.0,105100.0,0.32725952]
[1738222238968,0.38737804,105110.0,105100.0,0.36515952]
[1738222239675,0.35589804,105110.0,105100.0,0.36515952]
[1738222239868,0.38753804,105110.0,105100.0,0.36515952]
[1738222240371,0.31762999,105110.0,105100.0,0.36515952]
[1738222241356,0.26224708,105110.0,105100.0,0.36515952]
[1738222241561,0.26212708,105110.0,105100.0,0.36515952]
[1738222243268,0.23060708,105110.0,105100.0,0.36515952]
[1738222243462,0.26196708,105110.0,105100.0,0.36515952]
[1738222243667,0.0345026,105110.0,105100.0,0.36515952]
[1738222245276,0.0344226,105110.0,105100.0,0.72595952]
[1738222245777,0.0344226,105110.0,105100.0,2.22595952]
[1738222247275,0.08980551,105110.0,105100.0,0.72595952]
[1738222247868,0.28003251,105110.0,105100.0,0.36515952]
[1738222248070,0.6241496,105110.0,105100.0,0.36515952]
[1738222248269,0.6241496,105110.0,105100.0,0.29667226]
[1738222248866,0.6241496,105110.0,105100.0,0.36515952]
[1738222249067,0.6241496,105110.0,105100.0,0.32725952]
[1738222249583,0.6986496,105110.0,105100.0,0.32725952]
[1738222249773,0.5083826,105110.0,105100.0,0.32725952]
[1738222250873,0.4771426,105110.0,105100.0,0.32725952]
[1738222251070,0.5083826,105110.0,105100.0,0.25877226]
[1738222251269,0.6986496,105110.0,105100.0,0.25877226]
[1738222254485,0.5083826,105110.0,105100.0,0.25877226]
[1738222255584,0.89749834,105110.0,105100.0,0.25877226]
[1738222255780,0.95288125,105110.0,105100.0,0.25877226]
[1738222257367,0.59208125,105110.0,105100.0,0.25877226]
[1738222257773,0.95288125,105110.0,105100.0,0.25877226]
[1738222259282,0.59208125,105110.0,105100.0,0.25877226]
[1738222259675,0.53669834,105110.0,105100.0,0.25877226]
[1738222261377,0.190285,105100.0,105090.0,0.26819714]
[1738222261586,0.65105226,105100.0,105090.0,0.00940888]
[1738222261772,0.65121226,105100.0,105080.0,0.25894286]
[1738222261974,0.61768376,105090.0,105080.0,0.25894286]
[1738222262174,0.590003,105090.0,105080.0,0.25894286]
[1738222262379,0.590003,105090.0,105080.0,0.32743012]
[1738222262886,0.590003,105090.0,105080.0,0.25894286]
[1738222263081,0.590003,105090.0,105080.0,0.33043012]
[1738222263382,0.590003,105090.0,105080.0,0.33143012]
[1738222265579,0.65849026,105090.0,105080.0,0.08234087]
[1738222265781,0.668603,105090.0,105080.0,0.08234087]
[1738222269786,0.668603,105090.0,105080.0,0.27266187]
[1738222277594,0.668603,105090.0,105080.0,0.08234087]
[1738222288899,0.79247317,105090.0,105080.0,0.08234087]
[1738222289096,0.79247317,105090.0,105080.0,0.01385361]
[1738222290602,0.86239773,105090.0,105080.0,0.01385361]
[1738222291807,0.80701482,105090.0,105080.0,0.01385361]
[1738222293299,0.73852756,105090.0,105080.0,0.08234087]
[1738222296902,0.73852756,105090.0,105080.0,0.01385361]
[1738222297096,0.80701482,105090.0,105080.0,0.01385361]
[1738222299608,0.80701482,105090.0,105080.0,0.0041426]
[1738222300205,0.89464749,105090.0,105080.0,0.0041426]
[1738222300907,1.26513527,105090.0,105080.0,0.0041426]
[1738222302012,1.32053991,105090.0,105080.0,0.0041426]
[1738222302910,0.190356,105070.0,105050.0,0.29958302]
[1738222303098,0.190356,105070.0,105050.0,1.74069421]
[1738222303099,0.06101663,105060.0,105050.0,1.74069421]
[1738222303508,0.03332,105060.0,105050.0,1.74069421]
[1738222304307,0.03432,105060.0,105050.0,1.74769421]
[1738222305007,0.224677,105060.0,105050.0,1.74969421]
[1738222305215,0.224677,105060.0,105050.0,1.81818147]
[1738222307017,0.224677,105060.0,105050.0,0.31818147]
[1738222307216,0.585477,105060.0,105050.0,0.31818147]
[1738222307513,0.585477,105060.0,105050.0,0.12781347]
[1738222315416,0.585477,105060.0,105050.0,0.08851347]
[1738222320222,0.225037,105060.0,105050.0,0.08851347]
[1738222320425,0.225037,105060.0,105050.0,0.27888947]
[1738222320925,0.001,105060.0,105050.0,0.63968947]
[1738222321114,0.001,105060.0,105050.0,0.67978947]
[1738222321115,0.03476,105060.0,105050.0,0.67978947]
[1738222321420,0.03476,105060.0,105050.0,0.43047673]
[1738222321719,0.03484,105060.0,105050.0,0.72278947]
[1738222322436,0.03484,105060.0,105050.0,0.79127673]
[1738222322721,0.03472,105060.0,105050.0,0.72278947]
[1738222324225,0.225077,105060.0,105050.0,0.72278947]
[1738222331326,0.224477,105060.0,105050.0,0.72278947]
[1738222333524,0.224477,105060.0,105050.0,0.67978947]
[1738222333828,0.27988164,105060.0,105050.0,0.63968947]
[1738222334133,0.64068164,105060.0,105050.0,0.27888947]
[1738222334624,0.585277,105060.0,105050.0,0.02002621]
[1738222334833,0.65376426,105060.0,105050.0,0.02002621]
[1738222335827,0.65376426,105060.0,105050.0,0.01042776]
[1738222336321,0.72370037,105060.0,105050.0,0.01042776]
[1738222338930,0.77908845,105060.0,105050.0,0.07891502]
[1738222339138,0.71060119,105060.0,105050.0,0.07891502]
[1738222339535,0.65521311,105060.0,105050.0,0.07891502]
[1738222342335,0.585277,105060.0,105050.0,0.07891502]
[1738222345236,0.224477,105060.0,105050.0,0.07891502]
[1738222345437,0.585277,105060.0,105050.0,0.07891502]
[1738222347934,0.64066508,105060.0,105050.0,0.07891502]
[1738222350038,0.64066508,105060.0,105050.0,0.01042776]
[1738222352142,0.70915234,105060.0,105050.0,0.01042776]
[1738222353435,0.65376426,105060.0,105050.0,0.01042776]
[1738222356148,0.7790701,105060.0,105050.0,0.01042776]
[1738222356854,0.723704,105060.0,105050.0,0.01042776]
[1738222358449,0.97804934,105060.0,105050.0,0.01042776]
[1738222361253,1.03339813,105060.0,105050.0,0.01042776]
[1738222364055,1.00027813,105060.0,105050.0,0.01042776]
[1738222364252,1.03215813,105060.0,105050.0,0.01042776]
[1738222367058,0.97680934,105060.0,105050.0,0.01042776]
[1738222367250,1.03219303,105060.0,105050.0,0.01042776]
[1738222368056,0.97680934,105060.0,105050.0,0.01042776]
[1738222370852,1.0322098,105060.0,105050.0,0.01042776]
[1738222372757,0.96372254,105060.0,105050.0,0.01042776]
[1738222373061,0.96324254,105060.0,105050.0,0.01042776]
[1738222374660,1.0317298,105060.0,105050.0,0.01042776]
[1738222374865,0.97632934,105060.0,105050.0,0.01042776]
[1738222375259,1.03173208,105060.0,105050.0,0.01042776]
[1738222375954,0.96324482,105060.0,105050.0,0.01042776]
[1738222377457,0.96324482,105060.0,105050.0,0.00842776]
[1738222378063,0.96224482,105060.0,105050.0,0.00542776]
[1738222378758,0.96208482,105060.0,105050.0,0.00542776]
[1738222379059,0.90668208,105060.0,105050.0,0.00542776]
[1738222379764,0.97516934,105060.0,105050.0,0.00542776]
[1738222379964,1.03057098,105060.0,105050.0,0.00542776]
[1738222382266,0.96208372,105060.0,105050.0,0.00542776]
[1738222382966,1.12018372,105060.0,105050.0,0.00542776]
[1738222383567,0.96208372,105060.0,105050.0,0.00542776]
[1738222384062,0.57004372,105060.0,105050.0,0.00542776]
[1738222384264,0.50010398,105060.0,105050.0,0.07391502]
[1738222384471,0.53126398,105060.0,105050.0,0.26429102]
[1738222384764,0.53126398,105060.0,105050.0,0.37539102]
[1738222385865,0.50010398,105060.0,105050.0,0.37539102]
[1738222386170,0.53130398,105060.0,105050.0,0.37396326]
[1738222386860,0.27695864,105060.0,105050.0,0.37396326]
[1738222387259,0.221557,105060.0,105050.0,0.37396326]
[1738222389267,0.221557,105060.0,105050.0,0.18358726]
[1738222389471,0.65084426,105060.0,105050.0,0.07248726]
[1738222389969,0.65084426,105060.0,105050.0,0.004]
[1738222391271,0.65084426,105060.0,105050.0,0.07248726]
[1738222391572,0.65084426,105060.0,105050.0,0.004]
[1738222391965,0.71933152,105060.0,105050.0,0.004]
[1738222392162,0.65084426,105060.0,105050.0,0.004]
[1738222392363,0.71933152,105060.0,105050.0,0.004]
[1738222392668,0.65084426,105060.0,105050.0,0.004]
[1738222402379,0.72078829,105060.0,105050.0,0.004]
[1738222402780,0.77617223,105060.0,105050.0,0.004]
[1738222405684,0.77471546,105060.0,105050.0,0.004]
[1738222405878,0.7062282,105060.0,105050.0,0.004]
[1738222408588,0.58435846,105060.0,105040.0,0.0001426]
[1738222408891,0.75974879,105050.0,105040.0,0.0001426]
[1738222409185,0.73206326,105050.0,105040.0,0.0001426]
[1738222410088,0.73206326,105050.0,105040.0,0.0031426]
[1738222411381,0.73206326,105050.0,105040.0,0.0041426]
[1738222413991,0.74155538,105050.0,105040.0,0.0041426]
[1738222414494,0.81194649,105050.0,105040.0,0.0041426]
[1738222414691,0.19043,105020.0,105010.0,0.19748919]
[1738222414892,0.58287,105020.0,105010.0,0.19748919]
[1738222416193,0.22207,105020.0,105010.0,0.19748919]
[1738222416391,0.58387,105020.0,105010.0,0.20248919]
[1738222417494,0.58387,105020.0,105010.0,0.20448919]
[1738222417892,0.58387,105020.0,105010.0,0.07548726]
[1738222418088,0.58387,105020.0,105010.0,0.08519621]
[1738222425899,0.58387,105020.0,105010.0,0.07548726]
[1738222427901,0.55223,105020.0,105010.0,0.07548726]
[1738222428095,0.58355,105020.0,105010.0,0.07548726]
[1738222431205,0.65203726,105020.0,105010.0,0.07548726]
[1738222431798,0.65203726,105020.0,105010.0,0.007]
[1738222432299,0.72052452,105020.0,105010.0,0.007]
[1738222432703,0.65203726,105020.0,105010.0,0.007]
[1738222433804,0.65103726,105020.0,105010.0,0.002]
[1738222434208,0.65103726,105020.0,105010.0,0.003]
[1738222435306,0.65103726,105020.0,105010.0,0.07148726]
[1738222435511,0.65103726,105020.0,105010.0,0.003]
[1738222439111,0.55123,105020.0,105010.0,0.07148726]
[1738222439410,0.58231,105020.0,105010.0,0.07148726]
[1738222445020,0.63769394,105020.0,105010.0,0.07148726]
[1738222447124,0.63761394,105020.0,105010.0,0.07148726]
[1738222447537,0.60661394,105020.0,105010.0,0.07148726]
[1738222447729,0.63761394,105020.0,105010.0,0.07148726]
[1738222448031,0.63761394,105020.0,105010.0,0.10588726]
[1738222448222,0.58223,105020.0,105010.0,0.10588726]
[1738222449935,0.55123,105020.0,105010.0,0.10588726]
[1738222450135,0.22143,105020.0,105010.0,0.10588726]
[1738222451435,0.19043,105020.0,105010.0,0.10588726]
[1738222451626,0.22143,105020.0,105010.0,0.10588726]
[1738222451831,0.19043,105020.0,105010.0,0.29633526]
[1738222452133,0.22143,105020.0,105010.0,0.29633526]
[1738222452436,0.22143,105020.0,105010.0,0.33253526]
[1738222453427,0.19043,105020.0,105010.0,0.69333526]
[1738222453735,0.22195,105020.0,105010.0,0.33253526]
[1738222455437,0.22195,105020.0,105010.0,0.14208726]
[1738222458032,0.22195,105020.0,105010.0,0.33253526]
[1738222464539,0.58275,105020.0,105010.0,0.29633526]
[1738222469154,0.58275,105020.0,105010.0,0.26193526]
[1738222472557,0.55123,105020.0,105010.0,0.26193526]
[1738222472858,0.58227,105020.0,105010.0,0.26193526]
[1738222475051,0.52652654,105030.0,105010.0,0.26193526]
[1738222475256,0.71694154,105030.0,105020.0,0.06848726]
[1738222475459,0.74794154,105030.0,105020.0,0.06848726]
[1738222475758,0.74794154,105030.0,105020.0,0.13697452]
[1738222476059,0.74794154,105030.0,105020.0,0.06848726]
[1738222476658,0.74894154,105030.0,105020.0,0.06848726]
[1738222476958,0.71794154,105030.0,105020.0,0.06848726]
[1738222477148,0.74894154,105030.0,105020.0,0.06848726]
[1738222477349,0.71794154,105030.0,105020.0,0.06848726]
[1738222477544,0.74894154,105030.0,105020.0,0.06848726]
[1738222477957,0.74894154,105030.0,105020.0,0.13697452]
[1738222478353,0.6935576,105030.0,105020.0,0.13697452]
[1738222478660,0.5031426,105030.0,105020.0,0.32740452]
[1738222479160,0.55852654,105030.0,105020.0,0.32740452]
[1738222481259,0.55852654,105030.0,105020.0,0.33710693]
[1738222482156,0.5031426,105030.0,105020.0,0.33710693]
[1738222483056,0.3619426,105030.0,105020.0,0.33710693]
[1738222483249,0.0011426,105030.0,105020.0,0.33710693]
[1738222483453,0.0321426,105030.0,105020.0,0.33710693]
[1738222484754,0.0011426,105030.0,105020.0,0.33710693]
[1738222484957,0.0321426,105030.0,105020.0,0.33710693]
[1738222489157,0.3929426,105030.0,105020.0,0.33710693]
[1738222489561,0.0321426,105030.0,105020.0,0.33710693]
[1738222491259,0.0640426,105030.0,105020.0,0.33710693]
[1738222494364,0.6152546,105030.0,105020.0,0.26861967]
[1738222494562,0.3160546,105030.0,105020.0,0.26861967]
[1738222495662,0.1256426,105030.0,105020.0,0.26861967]
[1738222497170,0.1256426,105030.0,105020.0,0.33710693]
[1738222499566,0.0321426,105030.0,105020.0,0.33710693]
[1738222501775,0.0321426,105030.0,105020.0,0.69790693]
[1738222512576,0.0011426,105030.0,105020.0,0.69790693]
[1738222512776,0.0321426,105030.0,105020.0,0.69790693]
[1738222513783,0.0011426,105030.0,105020.0,0.69790693]
[1738222513987,0.0321426,105030.0,105020.0,0.69790693]